[Event "CIS Master Groups 2024"]
[Site "Vasto"]
[Date "2024.04.14"]
[Round "10.3"]
[White "Damia, Angelo"]
[Black "Tripodi, Enzo"]
[Result "1-0"]
[ECO "B95"]
[WhiteElo "2234"]
[BlackElo "2152"]
[Annotator "RC"]
[PlyCount "103"]
[EventDate "2024.04.07"]
[EventType "team-tourn"]
[EventCountry "ITA"]
[SourceTitle "playchess.com"]
[Source "ChessBase"]
[SourceQuality "1"]
[TimeControl "40/5400+30:900+30"]

1. e4 {[%emt 1:18:55]} c5 {[%emt 1:18:55]} 2. Nf3 {[%emt 0:00:28]} d6 {[%emt 0:00:28]} 3. d4 {[%emt 0:00:58]} cxd4 {[%emt 0:00:28]} 4. Nxd4 {[%emt 0:00:29]} Nf6 {[%emt 0:00:28]} 5. Nc3 {[%emt 0:00:29]} a6 {[%emt 0:00:28]} 6. Bg5 {[%emt 0:00:34]} e6 {[%emt 0:00:35]} 7. Bc4 {[%emt 0:01:43]} Be7 {[%emt 0:00:52]} 8. Be3 {[%emt 0:02:20]} Qc7 {[%emt 0:00:28]} 9. Bb3 {[%emt 0:00:29]} Bd7 {[%emt 0:00:34]} 10. f3 {[%emt 0:00:35]} Nc6 {[%emt 0:00:28]} 11. Qd2 {[%emt 0:00:47]} Na5 {[%emt 0:00:51]} 12. O-O {[%emt 0:00:36]} Nc4 {[%emt 0:00:57]} 13. Bxc4 {[%emt 0:00:31]} Qxc4 {[%emt 0:00:28]} 14. Nce2 {[%emt 0:01:34]} Rc8 {[%emt 0:00:37]} 15. b3 {[%emt 0:00:39]} Qc7 {[%emt 0:00:43]} 16. c4 {[%emt 0:00:27]} O-O {[%emt 0:00:53]} 17. Rac1 {[%emt 0:00:31]} Rfd8 {[%emt 0:00:34]} 18. g4 {[%emt 0:00:36]} Be8 {[%emt 0:01:22]} 19. Ng3 {[%emt 0:00:32]} Qb8 {[%emt 0:01:30]} 20. Rfd1 {[%emt 0:01:27]} b5 {[%emt 0:00:33]} 21. cxb5 {[%emt 0:00:41]} axb5 {[%emt 0:00:51]} 22. Qb4 {[%emt 0:01:08]} Qb7 {[%emt 0:01:05]} 23. g5 {[%emt 0:00:48]} Nd7 {[%emt 0:01:08]} 24. Qxb5 {[%emt 0:00:31]} Qxb5 {[%emt 0:00:51]} 25. Nxb5 {[%emt 0:00:28]} Ne5 {[%emt 0:00:40]} 26. Rxc8 {[%emt 0:01:45]} Rxc8 {[%emt 0:00:29]} 27. Nd4 {[%emt 0:01:07]} Rc3 {[%emt 0:00:49]} 28. Nf1 {[%emt 0:00:42]} g6 {[%emt 0:01:48]} 29. h3 {[%emt 0:00:53]} Bd8 {[%emt 0:00:59]} 30. f4 {[%emt 0:00:28]} Nc6 {[%emt 0:03:19]} 31. Ne2 {[%emt 0:00:29]} Rc2 {[%emt 0:00:38]} 32. Rd2 {[%emt 0:00:28]} Rxd2 {[%emt 0:00:59]} 33. Nxd2 {[%emt 0:00:28]} Nb4 {[%emt 0:00:28]} 34. a4 {[%emt 0:00:52]} Nc2 {[%emt 0:00:44]} 35. Bf2 {[%emt 0:00:50]} e5 {[%emt 0:00:28]} 36. h4 {[%emt 0:00:48]} Na1 {[%emt 0:00:41]} 37. fxe5 {[%emt 0:01:04]} dxe5 {[%emt 0:00:28]} 38. Nc1 {[%emt 0:00:40]} Bc6 {[%emt 0:00:39]} 39. Nd3 {[%emt 0:00:39]} Ba5 {[%emt 0:00:39]} 40. b4 {[%emt 0:00:40]} Bxb4 {[%emt 0:00:28]} 41. Nxb4 {[%emt 0:15:28]} Bxa4 {[%emt 0:15:28]} 42. Nc4 {[%emt 0:00:32]} Nc2 {[%emt 0:00:32]} 43. Nxc2 {[%emt 0:00:43]} Bxc2 {[%emt 0:00:28]} 44. Nd6 {[%emt 0:00:30]} Kf8 {[%emt 0:00:33]} 45. Bg3 {[%emt 0:00:27]} Ke7 {[%emt 0:00:30]} 46. Bxe5 {[%emt 0:00:28]} Ke6 {[%emt 0:00:27]} 47. Bf4 {[%emt 0:00:29]} f5 {[%emt 0:00:32]} 48. e5 {[%emt 0:00:31]} Bd3 {[%emt 0:00:30]} 49. Kf2 {[%emt 0:00:29]} Kd5 {[%emt 0:00:29]} 50. Ke3 {[%emt 0:00:28]} Ba6 {[%emt 0:00:28]} 51. Ne8 {[%emt 0:00:28]} Kc6 {[%emt 0:00:33]} 52. Nf6 {[%emt 0:00:48]} 1-0

[Event "CIS Master Groups 2024"]
[Site "Vasto"]
[Date "2024.04.14"]
[Round "10.4"]
[White "Rotondaro, Alberto"]
[Black "Stromboli, Carlo"]
[Result "0-1"]
[ECO "D35"]
[WhiteElo "2148"]
[BlackElo "2192"]
[Annotator "TA"]
[PlyCount "138"]
[EventDate "2024.04.07"]
[EventType "team-tourn"]
[EventCountry "ITA"]
[SourceTitle "playchess.com"]
[Source "ChessBase"]
[SourceQuality "1"]
[TimeControl "40/5400+30:900+30"]

{[%evp 40,138,88,112,88,52,66,37,39,22,18,21,33,32,33,26,22,0,12,4,22,16,33,31,39,47,39,45,83,72,85,70,79,67,68,54,58,54,62,62,62,62,62,0,62,28,35,0,0,0,0,0,0,-38,-33,-56,-38,-41,-38,-38,-39,-39,-52,-60,-21,-36,-36,-36,-36,-36,-36,-36,-36,-97,-107,-100,-100,-150,-195,-464,-540,-1608,-1648,-2287,-1789,-4530,-2602,-1718,-1430,-29978,-1765,-5181,-5397,-29990,-29982,-29982,-29983,-29983,-29984,-29982,-29978]} 1. d4 {[%emt 1:18:55]} Nf6 {[%emt 1:18:56]} 2. c4 {[%emt 0:00:30]} e6 {[%emt 0:00:28]} 3. Nc3 {[%emt 0:00:31]} d5 {[%emt 0:00:41]} 4. cxd5 {[%emt 0:00:30]} exd5 {[%emt 0:00:29]} 5. Bg5 {[%emt 0:00:28]} a6 {[%emt 0:00:39]} 6. e3 {[%emt 0:00:32]} Be6 {[%emt 0:00:34]} 7. Bd3 {[%emt 0:00:33]} Nbd7 {[%emt 0:00:31]} 8. h3 {[%emt 0:00:46]} Bd6 {[%emt 0:00:36]} 9. Nge2 {[%emt 0:00:39]} b5 {[%emt 0:01:02]} 10. O-O {[%emt 0:00:36]} O-O {[%emt 0:00:35]} 11. Qc2 {[%emt 0:01:12]} h6 {[%emt 0:00:36]} 12. Bf4 {[%emt 0:00:28]} Nb6 {[%emt 0:00:36]} 13. Bxd6 {[%emt 0:00:45]} cxd6 {[%emt 0:01:32]} 14. Nf4 {[%emt 0:00:52]} Qd7 {[%emt 0:00:38]} 15. Rfc1 {[%emt 0:02:21]} Rfc8 {[%emt 0:00:42]} 16. Nxe6 {[%emt 0:00:29]} fxe6 {[%emt 0:00:34]} 17. Qe2 {[%emt 0:01:00]} Rc7 {[%emt 0:02:10]} 18. b3 {[%emt 0:02:01]} Rac8 {[%emt 0:02:12]} 19. Qb2 {[%emt 0:00:33]} Qe7 {[%emt 0:02:10]} 20. Ne2 {[%emt 0:00:45]} Rc6 {[%emt 0:01:43]} 21. Rxc6 {[%emt 0:01:04]} Rxc6 {[%emt 0:00:48]} 22. Rc1 {[%emt 0:00:28]} Qc7 {[%emt 0:01:05]} 23. f3 {[%emt 0:01:05]} Rxc1+ {[%emt 0:00:50]} 24. Qxc1 {[%emt 0:00:28]} Qxc1+ {[%emt 0:00:45]} 25. Nxc1 {[%emt 0:00:29]} Kf7 {[%emt 0:00:38]} 26. Kf2 {[%emt 0:00:28]} Nfd7 {[%emt 0:00:58]} 27. Ne2 {[%emt 0:01:09]} Nb8 {[%emt 0:00:35]} 28. Nc1 {[%emt 0:01:51]} Nc6 {[%emt 0:00:30]} 29. Ke1 {[%emt 0:00:53]} Nb4 {[%emt 0:00:42]} 30. Bf1 {[%emt 0:00:40]} Nd7 {[%emt 0:00:41]} 31. Kd2 {[%emt 0:00:29]} Nc6 {[%emt 0:00:34]} 32. a4 {[%emt 0:01:42]} bxa4 {[%emt 0:00:41]} 33. bxa4 {[%emt 0:00:29]} a5 {[%emt 0:00:37]} 34. Bb5 {[%emt 0:00:29]} Ndb8 {[%emt 0:00:33]} 35. Nb3 {[%emt 0:00:28]} Ke7 {[%emt 0:00:28]} 36. g4 {[%emt 0:00:30]} Kd8 {[%emt 0:00:32]} 37. Kc3 {[%emt 0:00:40]} Kc7 {[%emt 0:00:28]} 38. h4 {[%emt 0:00:31]} Kb6 {[%emt 0:00:29]} 39. f4 {[%emt 0:00:33]} Ne7 {[%emt 0:00:34]} 40. Kd3 {[%emt 0:00:56]} Nbc6 {[%emt 0:00:29]} 41. g5 {[%emt 0:15:39]} (41. Ke2 $14) 41... Nb4+ {[%emt 0:15:33]} (41... Nf5 $11) 42. Ke2 {[%emt 0:00:29]} Nbc6 {[%emt 0:00:30]} 43. Kf3 {[%emt 0:00:34]} h5 {[%emt 0:00:29]} 44. Bd3 {[%emt 0:00:31]} Nb4 {[%emt 0:00:28]} 45. Bb5 {[%emt 0:00:29]} Nbc6 {[%emt 0:00:28]} 46. Nd2 {[%emt 0:00:31]} Nf5 {[%emt 0:00:30]} 47. Nb3 {[%emt 0:00:37]} Nxh4+ {[%emt 0:00:28]} 48. Kf2 {[%emt 0:00:30]} Nf5 {[%emt 0:00:28]} 49. Bxc6 {[%emt 0:00:30]} Kxc6 {[%emt 0:00:28]} 50. Nxa5+ {[%emt 0:00:28]} Kb6 {[%emt 0:00:28]} 51. Nb3 {[%emt 0:00:29]} g6 {[%emt 0:00:27]} 52. a5+ {[%emt 0:00:33]} Kb5 {[%emt 0:00:28]} 53. Kf3 {[%emt 0:00:27]} Ne7 {[%emt 0:00:29]} 54. e4 $1 {[%emt 0:00:32]} dxe4+ {[%emt 0:00:31]} 55. Kxe4 {[%emt 0:00:28]} Nd5 {[%emt 0:00:38]} 56. f5 {[%emt 0:00:34]} ({White must play} 56. Kf3 $1 $15) 56... gxf5+ $17 {[%emt 0:00:30]} 57. Kf3 {[%emt 0:00:30] [#]} Ne7 $1 {[%emt 0:00:28]} 58. Kg3 {[%emt 0:00:29]} (58. Nd2 $142) 58... Ng6 $17 {[%emt 0:00:29]} 59. Kh3 $2 {[%emt 0:00:31]} (59. Nd2) 59... e5 $19 {[%emt 0:00:28]} (59... Ka4 $2 60. a6 Kxb3 61. a7 Nf4+ 62. Kg3 (62. Kh2 Kc3 $18) 62... Ne2+ 63. Kh4 $18) 60. Kg3 {[%emt 0:00:37]} e4 {[%emt 0:00:31]} 61. d5 {[%emt 0:00:29]} f4+ {[%emt 0:00:28]} 62. Kf2 {[%emt 0:00:28]} h4 {[%emt 0:00:29]} 63. Kg2 {[%emt 0:00:30]} f3+ {[%emt 0:00:31]} 64. Kh2 {[%emt 0:00:30]} Nf4 {[%emt 0:00:30]} (64... Kc4 65. a6 f2 (65... Kxb3 66. a7 $11) 66. a7 Kxb3 (66... f1=R $2 67. Nd2+ Kd4 68. Nxf1 $18) 67. a8=Q $11) (64... f2 $142 65. Kg2 e3 66. Kf1 h3 67. Nd4+ Kxa5 68. Nf5 h2 69. Ng3 Nf4 70. Nh1 Kb5 (70... Nxd5 $2 71. g6 $19) 71. Ng3 Kc4 (71... Nxd5 $2 72. g6 $19) 72. g6 Nxg6 (72... Kxd5 $2 73. g7 $18) 73. Ke2 Kxd5 74. Kxe3 h1=Q 75. Nxh1 f1=Q (75... f1=R 76. Ng3 $19) 76. Ng3 Qf4+ 77. Ke2 Qxg3 78. Kd2 Ne5 79. Ke2 Nc4 80. Kf1 Qf3+ 81. Kg1 Ne3 82. Kh2 Qg2#) 65. Nd2 $19 {[%emt 0:00:31]} f2 {[%emt 0:00:40]} ({Stronger than} 65... Kxa5 66. Nxe4 Kb6 (66... Nxd5 67. Kh3 $11) 67. Kg1 $11) 66. g6 {[%emt 0:00:41]} Nxg6 {[%emt 0:00:29]} 67. Kg2 {[%emt 0:00:29]} e3 {[%emt 0:00:27]} ({Worse is} 67... Kxa5 68. Nxe4 Nf4+ 69. Kxf2 $11) 68. Nf1 {[%emt 0:00:29]} Nf4+ {[%emt 0:00:28]} ({Not} 68... Kxa5 69. Nxe3 Nf4+ 70. Kxf2 $11) 69. Kf3 {[%emt 0:00:29]} Nxd5 {[%emt 0:00:29]} 0-1

[Event "CIS Master Groups 2024"]
[Site "Vasto"]
[Date "2024.04.14"]
[Round "11.1"]
[White "Saric, Ivan"]
[Black "Shevchenko, Kirill"]
[Result "1-0"]
[ECO "D73"]
[WhiteElo "2670"]
[BlackElo "2675"]
[Annotator "TA"]
[PlyCount "65"]
[EventDate "2024.04.07"]
[EventType "team-tourn"]
[EventCountry "ITA"]
[SourceTitle "playchess.com"]
[Source "ChessBase"]
[SourceQuality "1"]
[TimeControl "40/5400+30:900+30"]

{[%evp 12,65,14,9,29,11,12,8,15,0,0,0,0,0,0,0,0,-11,-14,-27,37,34,53,48,50,20,83,81,92,85,100,98,95,97,104,96,106,89,367,358,440,430,552,381,381,278,265,176,163,155,194,191,565,557,557,552]} 1. Nf3 {[%emt 0:00:02]} d5 {[%emt 0:02:50]} 2. g3 {[%emt 0:00:06]} g6 {[%emt 0:01:02]} 3. Bg2 {[%emt 0:00:19]} Bg7 {[%emt 0:00:10]} 4. d4 {[%emt 0:00:11]} Nf6 {[%emt 0:00:16]} 5. c4 {[%emt 0:01:08]} c6 {[%emt 0:01:32]} 6. cxd5 {[%emt 0:01:04]} cxd5 {[%emt 0:00:12]} 7. Nc3 {[%emt 0:01:08]} Ne4 {[%emt 0:07:29]} 8. Qb3 {[%emt 0:01:22]} Nxc3 {[%emt 0:01:44]} 9. bxc3 {[%emt 0:00:04]} O-O {[%emt 0:09:57] The position is equal.} 10. Nd2 {[%emt 0:04:15]} e6 {[%emt 0:01:25]} 11. e4 {[%emt 0:03:32][%cal Re4d5]} Nc6 {[%emt 0:02:24]} 12. Ba3 {[%emt 0:05:17]} Re8 {[%emt 0:00:26]} 13. e5 {[%emt 0:00:18]} Na5 {[%emt 0:06:29]} 14. Qd1 {[%emt 0:00:45]} b6 {[%emt 0:04:31]} 15. h4 {[%emt 0:07:56]} f6 {[%emt 0:20:59]} ({Black should try} 15... Ba6 $11) 16. exf6 $14 {[%emt 0:03:56]} Qxf6 {[%emt 0:02:17]} 17. O-O {[%emt 0:00:10]} Bb7 {[%emt 0:05:40]} 18. Bd6 {[%emt 0:08:37]} Qd8 {[%emt 0:02:29]} (18... Rac8 $11 {remains equal.}) 19. Bf4 $16 {[%emt 0:00:19]} e5 {[%emt 0:03:08]} 20. Bxe5 {[%emt 0:01:04]} Bxe5 {[%emt 0:00:06]} 21. dxe5 {[%emt 0:00:02]} Rxe5 {[%emt 0:00:13]} 22. Nf3 {[%emt 0:02:31]} Re8 {[%emt 0:00:34]} 23. Ng5 {[%emt 0:00:28]} Qd6 {[%emt 0:05:34]} 24. Qd3 $40 {[%emt 0:04:10][%mdl 128] White has strong attack.} (24. Qg4 {simplifies} Re7 25. Rfe1 Rae8 26. Rxe7 Qxe7 27. Rd1) 24... Qe5 $2 {[%emt 0:02:28][%mdl 8192] [#] Black cannot hold the game after this.} (24... Re5 $16 {was worth a try.}) 25. Rae1 $1 $18 {[%emt 0:02:02][%mdl 512]} Qf5 {[%emt 0:02:31]} (25... Qd6 26. Qd4) 26. Qd4 {[%emt 0:00:24]} Rad8 {[%emt 0:03:16]} 27. Bh3 {[%emt 0:07:07]} Nc6 {[%emt 0:00:09]} 28. Qd2 {[%emt 0:00:38]} Qf6 {[%emt 0:00:49]} 29. Rxe8+ {[%emt 0:02:35]} Rxe8 {[%emt 0:00:02]} 30. Qxd5+ {[%emt 0:00:08]} Kg7 {[%emt 0:02:56]} 31. Rd1 {[%emt 0:01:24][%cal Oh4h5]} Ba8 $2 {[%emt 0:04:21] [#]} (31... h6) 32. Qd7+ {[%emt 0:02:37]} Qe7 {[%emt 0:00:17]} 33. Bg2 {[%emt 0:01:48] Weighted Error Value: White=0.26 (precise) /Black=0.67.  Loses game:     	---       	Black=1      Mistake:       	---       	Black=3      Inaccurate:     	White=2     	---        OK:         	White=11    	Black=7      Best:        	White=3     	Black=2} 1-0

[Event "CIS Master Groups 2024"]
[Site "Vasto"]
[Date "2024.04.14"]
[Round "11.2"]
[White "Lodici, Lorenzo"]
[Black "Brunello, Sabino"]
[Result "1-0"]
[ECO "B48"]
[WhiteElo "2565"]
[BlackElo "2515"]
[Annotator "RC"]
[PlyCount "71"]
[EventDate "2024.04.07"]
[EventType "team-tourn"]
[EventCountry "ITA"]
[SourceTitle "playchess.com"]
[Source "ChessBase"]
[SourceQuality "1"]
[TimeControl "40/5400+30:900+30"]

1. e4 {[%emt 0:05:39]} c5 {[%emt 0:06:22]} 2. Nf3 {[%emt 0:00:19]} e6 {[%emt 0:00:05]} 3. d4 {[%emt 0:03:09]} cxd4 {[%emt 0:00:08]} 4. Nxd4 {[%emt 0:00:03]} Nc6 {[%emt 0:00:04]} 5. Nc3 {[%emt 0:00:16]} Qc7 {[%emt 0:00:07]} 6. Be3 {[%emt 0:01:44]} a6 {[%emt 0:00:55]} 7. a3 {[%emt 0:00:57]} b5 {[%emt 0:01:01]} 8. Nxc6 {[%emt 0:01:01]} Qxc6 {[%emt 0:00:33]} 9. h4 {[%emt 0:00:03]} Rb8 {[%emt 0:03:50]} 10. Qd2 {[%emt 0:13:40]} Nf6 {[%emt 0:10:40]} 11. Bd4 {[%emt 0:11:32]} b4 {[%emt 0:11:14]} 12. axb4 {[%emt 0:02:31]} Rxb4 {[%emt 0:02:53]} 13. O-O-O {[%emt 0:03:04]} Bc5 {[%emt 0:11:56]} 14. Bxc5 {[%emt 0:01:59]} Qxc5 {[%emt 0:00:06]} 15. f3 {[%emt 0:01:55]} O-O {[%emt 0:03:10]} 16. g4 {[%emt 0:03:03]} d5 {[%emt 0:12:59]} 17. g5 {[%emt 0:04:50]} Nh5 {[%emt 0:01:17]} 18. exd5 {[%emt 0:00:54]} Bd7 {[%emt 0:00:10]} 19. dxe6 {[%emt 0:18:21]} Bxe6 {[%emt 0:03:43]} 20. Qd6 {[%emt 0:00:05]} Qe3+ {[%emt 0:04:57]} 21. Rd2 {[%emt 0:00:25]} Rfb8 {[%emt 0:10:51]} 22. Bb5 {[%emt 0:04:58]} Qf4 {[%emt 0:05:31]} 23. Rhd1 {[%emt 0:01:45]} h6 {[%emt 0:01:28]} 24. Qxb8+ {[%emt 0:04:08]} Qxb8 {[%emt 0:00:05]} 25. Rd8+ {[%emt 0:00:04]} Qxd8 {[%emt 0:00:03]} 26. Rxd8+ {[%emt 0:00:03]} Kh7 {[%emt 0:00:04]} 27. Bd3+ {[%emt 0:07:02]} g6 {[%emt 0:00:04]} 28. Ne4 {[%emt 0:00:02]} Bf5 {[%emt 0:00:21]} 29. Ra8 {[%emt 0:02:15]} Bxe4 {[%emt 0:00:39]} 30. fxe4 {[%emt 0:02:01]} Nf4 {[%emt 0:00:28]} 31. Rxa6 {[%emt 0:01:17]} Rb7 {[%emt 0:02:47]} 32. Bc4 {[%emt 0:02:18]} Ng2 {[%emt 0:02:19]} 33. Bd5 {[%emt 0:02:23]} Re7 {[%emt 0:00:22]} 34. b4 {[%emt 0:00:45]} Nxh4 {[%emt 0:00:09]} 35. b5 {[%emt 0:00:03]} hxg5 {[%emt 0:00:27]} 36. b6 {[%emt 0:00:04]} 1-0

[Event "CIS Master Groups 2024"]
[Site "Vasto"]
[Date "2024.04.14"]
[Round "11.3"]
[White "Dvirnyy, Danyyil"]
[Black "Barp, Alberto"]
[Result "1/2-1/2"]
[ECO "C78"]
[WhiteElo "2480"]
[BlackElo "2470"]
[Annotator "TA"]
[PlyCount "23"]
[EventDate "2024.04.07"]
[EventType "team-tourn"]
[EventCountry "ITA"]
[SourceTitle "playchess.com"]
[Source "ChessBase"]
[SourceQuality "1"]
[TimeControl "40/5400+30:900+30"]

{[%evp 18,23,42,47,38,45,38,-6]} 1. e4 {[%emt 0:00:03]} e5 {[%emt 0:05:40]} 2. Nf3 {[%emt 0:00:10]} Nc6 {[%emt 0:00:09]} 3. Bb5 {[%emt 0:00:08]} a6 {[%emt 0:00:05]} 4. Ba4 {[%emt 0:00:09]} Nf6 {[%emt 0:00:05]} 5. O-O {[%emt 0:00:11]} b5 {[%emt 0:00:19]} 6. Bb3 {[%emt 0:00:07]} Bc5 {[%emt 0:00:04]} 7. a4 {[%emt 0:00:50]} Rb8 {[%emt 0:00:04]} 8. c3 {[%emt 0:04:36]} d6 {[%emt 0:00:21]} 9. d4 {[%emt 0:00:34]} Bb6 {[%emt 0:00:08]} 10. axb5 {[%emt 0:15:05] White is slightly better.} axb5 {[%emt 0:00:21]} 11. Qd3 {[%emt 0:00:06]} Bd7 {[%emt 0:02:10]} 12. Bg5 {[%emt 0:02:22] Inaccurate:     	White=1     	---        OK:         	---       	Black=1} (12. Qxb5 $2 {is the wrong capture.} Nxd4 $19 (12... exd4 13. Qd3 $15) (12... exd4 13. Qd3 $15)) 1/2-1/2

[Event "CIS Master Groups 2024"]
[Site "Vasto"]
[Date "2024.04.14"]
[Round "11.4"]
[White "Cappelletto, Joshuaede"]
[Black "Gilevych, Artem"]
[Result "1/2-1/2"]
[ECO "C18"]
[WhiteElo "2306"]
[BlackElo "2417"]
[Annotator "TA"]
[PlyCount "83"]
[EventDate "2024.04.07"]
[EventType "team-tourn"]
[EventCountry "ITA"]
[SourceTitle "playchess.com"]
[Source "ChessBase"]
[SourceQuality "1"]
[TimeControl "40/5400+30:900+30"]

{[%evp 13,83,20,26,19,30,37,26,33,32,27,25,34,41,-16,-23,-12,-29,-54,-39,-51,-54,-41,-29,-50,9,0,47,11,76,79,77,64,218,73,56,56,114,25,27,46,58,62,56,57,152,142,156,105,107,113,123,113,106,106,109,0,0,0,0,0,0,0,0,0,15,12,15,15,15,15,15,0]} 1. e4 {[%emt 0:02:08]} e6 {[%emt 0:00:05]} 2. d4 {[%emt 0:00:19]} d5 {[%emt 0:00:05]} 3. Nc3 {[%emt 0:00:04]} Bb4 {[%emt 0:00:05]} 4. e5 {[%emt 0:00:03]} c5 {[%emt 0:00:05]} 5. a3 {[%emt 0:00:04]} Bxc3+ {[%emt 0:00:05]} 6. bxc3 {[%emt 0:00:04]} Qc7 {[%emt 0:00:05]} 7. Qg4 {[%emt 0:00:03]} f6 {[%emt 0:00:10]} 8. Qg3 {[%emt 0:06:31]} Nc6 {[%emt 0:21:38]} 9. Nf3 {[%emt 0:01:55]} c4 {[%emt 0:01:53] Prevents Bd3.} 10. a4 {[%emt 0:06:15] White has an edge.} Qf7 {[%emt 0:00:38]} 11. Be2 {[%emt 0:07:20]} Nge7 {[%emt 0:00:26]} 12. O-O {[%emt 0:01:48]} Bd7 {[%emt 0:16:10]} 13. Ba3 {[%emt 0:07:44]} (13. exf6 $14 gxf6 14. Qc7) 13... Nf5 $11 {[%emt 0:06:02]} 14. Qh3 {[%emt 0:00:54]} O-O-O {[%emt 0:00:36]} 15. Nh4 {[%emt 0:11:49]} Nxh4 {[%emt 0:12:54]} 16. Qxh4 {[%emt 0:00:21]} fxe5 {[%emt 0:00:28]} 17. dxe5 {[%emt 0:00:39]} Qf5 {[%emt 0:00:59] Prevents Qg5} 18. f4 {[%emt 0:08:47]} Qxc2 {[%emt 0:01:38]} (18... g5 $1 $15 19. Qf2 (19. Qxg5 Qxc2 20. Qh5 Qxc3 $17) (19. fxg5 Qxe5 20. Qf2 Rdg8 $15) 19... h5) 19. Qe1 {[%emt 0:03:03]} Rhg8 {[%emt 0:05:54]} (19... Qf5 $11 {was preferrable.}) 20. Bd1 {[%emt 0:04:33][%mdl 1024] White has compensation.} Qd3 {[%emt 0:01:33]} (20... Qf5 $11 {keeps the balance.}) 21. Rf3 {[%emt 0:00:58]} Qf5 {[%emt 0:06:24]} 22. Qf2 {[%emt 0:00:42] And now Bd6 would win.} h6 $2 {[%emt 0:07:23] [#]} (22... g5 $14) 23. a5 {[%emt 0:01:45]} Kb8 $16 {[%emt 0:01:08][%cal Ob8a8]} 24. Bc5 $36 {[%emt 0:02:07][%mdl 2048] a6 would now be deadly. Black is under pressure.} Ka8 $1 {[%emt 0:04:13]} 25. Bc2 {[%emt 0:06:41]} ({White should play} 25. Ba4 $1 $16) 25... Qf7 $1 $11 {[%emt 0:00:48]} 26. Ba4 {[%emt 0:00:51] Black is weak on the dark squares} (26. Bd6 {feels hotter.} Ne7 27. Qc5 Rc8 28. Qb4) 26... Be8 {[%emt 0:05:24]} 27. Bxc6 {[%emt 0:05:43]} Bxc6 {[%emt 0:00:50]} 28. Qd4 {[%emt 0:00:45]} g5 {[%emt 0:00:54]} (28... a6 $14) 29. Bxa7 $16 {[%emt 0:03:16] White is more active.} gxf4 {[%emt 0:03:02]} 30. Bb6 {[%emt 0:00:11]} (30. Rxf4 $142 Qg6 31. g3) 30... Qg6 {[%emt 0:02:25]} 31. Rf2 {[%emt 0:00:16]} Rd7 {[%emt 0:01:00]} (31... Rdf8 32. a6 Rf5 33. Qc5 (33. Rxf4 $2 Qxg2#) (33. axb7+ Kb8 34. Qc5 Qxg2+ 35. Rxg2 Rxg2+ 36. Kxg2 Rg5+ 37. Kf3 Rg3+ 38. hxg3 Kxb7 39. Ra7+ Kc8 40. Qxc6+ Kb8 41. Qe8#) (33. Rxf4 $2 Qxg2#) (33. axb7+ Kb8 34. Qc5 Qxg2+ 35. Rxg2 Rxg2+ 36. Kxg2 Rg5+ 37. Kf3 Rg3+ 38. hxg3 Kxb7 39. Ra7+ Kc8 40. Qxc6+ Kb8 41. Qe8#)) 32. a6 {[%emt 0:01:16]} Qe4 {[%emt 0:00:57] [#]} 33. axb7+ $1 {[%emt 0:08:38]} (33. Rxf4 $2 Qxg2#) 33... Kxb7 {[%emt 0:00:00] [#]} 34. Ra7+ {[%emt 0:02:55] Really sharp!} (34. Rb2 $1 $16 {[%cal Ob6c7] Bc7+! would kill now.} Qe3+ 35. Qxe3 fxe3 36. Bxe3+ Kc7 37. Bb6+ (37. Bxh6 d4 $11) 37... Kc8 38. Bd4) 34... Kc8 $11 {[%emt 0:00:23][%cal Bb7c8,Bc8d7,Bd7e7][%mdl 32] The position is equal.} 35. Qxe4 {[%emt 0:02:02]} dxe4 {[%emt 0:00:07]} 36. Rxd7 {[%emt 0:00:06]} Kxd7 {[%emt 0:00:33]} 37. Rxf4 {[%emt 0:00:06] KRB-KRB} Rb8 {[%emt 0:00:53]} ({Much worse is} 37... e3 38. g3 $14) 38. Bd4 {[%emt 0:00:31]} Rb1+ {[%emt 0:00:21]} 39. Rf1 {[%emt 0:00:53]} Rxf1+ {[%emt 0:00:57]} 40. Kxf1 {[%emt 0:00:05]} Ke7 {[%emt 0:00:16]} 41. Kf2 {[%emt 0:15:06]} Kf7 {[%emt 0:15:26]} 42. Ke3 {[%emt 0:00:15] Black escapes into a draw.   Weighted Error Value: White=0.21 (precise) /Black=0.17 (very precise) .  Mistake:       	White=5     	Black=5      Inaccurate:     	White=1     	---        OK:         	White=15    	Black=12     Best:        	White=1     	Black=4      Strong:       	White=1     	Black=2} 1/2-1/2